Workbook

Sheet Info
B2: Dimensionierungshilfe für Umwälzpumpen in geschlossenen Erdwärmesonden:
B3: Programm E W S D R U C K
B4: Hergestellt im Rahmen des UAW-Forschungsprojektes: "Kostengünstige Niedrigtemperaturheizung mit Wärmepumpe"
B15: Hergestellt von: | D15: Arthur Huber, Markus Ochs
D16: Huber Energietechnik AG, Zürich
D18: Michael Wetter
D19: Hochschule Technik+Architektur Luzern (HTA)
D21: Felix Kaufmann
D22: Hochschule Technik+Architektur Luzern (HTA)
B24: Version: | D24: 2.0 | E24: August 2007
E28: Diese Arbeit ist im Auftrag des Bundesamtes für Energie entstanden. Für den Inhalt
E29: und die Schlussfolgerungen ist ausschliesslich der Autor dieses Berichts verantwortlich.

Sheet Sondenauslegung
B1: Pumpen-Auslegungsprogramm für Erdsonden
B2: Objekt:
B4: Gebäude und Standort | H4: Stoffwerte Sondenfluid
J5: =IF(dt<>"",IF(Fluid=1,"",IF(OR(INDEX(Daten!H12:H16,H6-1,1)>=INDEX(Daten!K12:K22,J6,1),TR-0.5<=INDEX(Daten!H12:H16,H6-1,1)),"Frostwarnung!","")),"") -> 
B6: Wärmebedarf | E6: kW | H6: 2 | J6: 4
B7: Warmwasserbedarf | E7: kW | H7: Dichte r | J7: =INDEX(Daten!C11:C17,H6,1) -> 1000 | K7: kg/m3
B8: Andere | E8: kW | H8: Kinematische Viskosität n | J8: =INDEX(Daten!L12:L22,J6,1)*1000000 -> 1.604 | K8: mm2/s
B9: Gebäude Total | D9: =SUM(D6:D8) -> 0.0 | E9: kW | H9: spez. Wärmekapazität cp | J9: =INDEX(Daten!G11:G17,H6,1) -> 4.22 | K9: kJ/(kg*K)
B10: Lage | D10: 1.0 | H10: Frost bei | J10: =INDEX(Daten!H11:H17,H6,1) -> 0 | K10: °C
B11: Jahresmitteltemperatur | E11: °C | H11: Wärmeübergangskoeffizient a | J11: =alpha -> 0 | K11: W/m²K
B12: Wärmeleitfähigkeit der Erde | E12: W/mK
B13: mittlere Erdreichtemperatur | D13: =IF(H<>"",(INDEX(Daten!C32:C35,D10,1))+D11+H/2*(0.035),"") ->  | E13: °C | H13: Druckverluste in Verteiler, Zuleitung und Sonde
B15: Wärmepumpe | H15: Verteiler Nenndruckverlust | K15: kPa
C16: =IF(AND(OR(Qh<(D9*0.75),Qh>(D9*1.25)),Qh<>"",Qh<>0),"Wärmepumpenleistung überprüfen!","") ->  | H16: Verteiler Nennmassenstrom | K16: kg/h
B17: Fabrikat: | D17: Typ: | H17: Vol.strommesser Nenndruckverlust | K17: kPa
B18: Nennleistung Wärmepumpe | E18: kW | H18: Vol.strommesser Nennmassenstrom | K18: kg/h
B19: COP bei obiger Nennleistung | E19: - | H19: Sonstige Elemente Nenndruckverlust | K19: kPa
B20: Nenndruckverlust Verdampfer | E20: kPa | H20: Sonstige Elemente Nennmassenstrom | K20: kg/h
B21: Nennmassenstrom Verdampfer | E21: kg/h | H21: Sondenanschlüsse Innendurchmesser | K21: mm
B22: Entzugsprofil / Schaltintervall | D22: 2.0 | H22: Sondenanschlüsse Länge horizontale | K22: m
B23: Leistungsaufnahme (elektrisch) | D23: =IF(Qh>0,IF(COP>0,(Qh/COP),Qh),"") ->  | E23: kW | H23: Sonden am Bohrkopf zusammengefasst | J23: 1
B24: Massenstrom Verdampfer | D24: =IF(dt>0,IF(COP>0,Qh*(1-1/COP)/cp/dt*3600,""),"") ->  | E24: kg/h | H24: Bogen 90° (z = 2) | K24: Stk.
B25: =IF(Daten!G40>15," hoher Druckabfall im Verdampfer!","") ->  | D25: =IF(AND(qspez<>"",dt<>""),IF((D24/3600)>(1.3*(Qe/qspez)/(2*cp*ra))," Massenstrom zu gross!",""),"") ->  | H25: Tauchhülsen (z = 1) | K25: Stk.
B26: Sondenparameter | H26: Sonstige z-Werte oder Sz | K26: -
B27: =IF(AND(D29>0,D28>0),"doppelte Eingabe! Spez. Sondenleistung löschen!",IF(qspez="","",IF(qspez>(1.1*qspezmax),"sehr grosse Sondenbelastung!",IF(qspez>qspezmax,"grosse Sondenbelastung!","")))) ->  | H27: Methode Berechg. Druckverlustkoeff. x | J27: 1
B28: spezifische Sondenleistung | E28: =IF(AND(D28=0,D29=0),"",IF(D28=0,(IF(COP>0,IF(Qh>0,Qh*(1-1/COP),0),D20))*1000/AnzahlSonden/H,D28)) ->  | F28: W/m
B29: Bohrtiefe | E29: =IF(AND(D28=0,D29=0),"",IF(D29=0,Qh*1000*(1-1/COP)/(qspez*AnzahlSonden),D29)) ->  | F29: m | H29: Sonden - Umwälzpumpe
B30: Anzahl Sonden | E30: =IF(D30>0,D30,1) -> 1
B31: Temperaturdifferenz Vorl./Rückl. | E31: K | H31: Fabrikat: | J31: Typ:
B32: Bohrlochdurchmesser | E32: cm | H32: Totaler Druckabfall | J32: =IF(dt<>"",D41+pext,"") ->  | K32: kPa
B33: Rohrdimension | D33: 2 | J33: =IF(dt<>"",IF(rho>0,J32*1000/(rho*9.81),0),"") ->  | K33: m
H34: Volumenstrom | J34: =IF(dt<>"",J35/3600,"") ->  | K34: m³/s
B35: Strömungswerte (für 1 Sonden-Rohr) | J35: =IF(dt<>"",IF(rho>0,$D$24/rho,0),"") ->  | K35: m³/h
B36: =IF(dt<>"",IF(AND(D38>0.55,re>3000),"grosse Fliessgeschwindigkeit!",""),"") ->  | H36: benötigte Leistung der Pumpe | J36: =IF(dt<>"",J32*1000*J34,"") ->  | K36: W
B37: Massenstrom in Sondenrohr | D37: =IF(dt<>"",IF(Fluid=1,"",$D$24/2/AnzahlSonden),"") ->  | E37: kg/h | H37: Wirkungsgrad der Pumpe | K37: =IF(AND(J38="",J37=""),"",IF(J37="",J36/J38*100,J37)) ->  | L37: %
B38: Geschwindigkeit in Sondenrohr | D38: =IF(dt<>"",IF(Fluid=1,,mSonde/3600*4/rho/(dinnen)^2/PI()),"") ->  | E38: m/s | H38: Leistungsaufnahme Pumpe | K38: =IF(AND(J37="",J38=""),"",IF(J38="",J36/J37*100,J38)) ->  | L38: W
B39: Art der Strömung (laminar/turbul.) | D39: =IF(dt<>"",IF(re<2300,"laminar","turbulent"),"") ->  | H39: =IF(eta<>"",IF(AND(J37>0,J38>0),"doppelte Eingabe! Wirkungsgrad oder Leistungsaufnahme löschen!",IF(eta<20,"schlechter Pumpenwirkungsgrad!",IF(eta>40,"sehr guter Pumpenwirkungsgrad!",""))),"") -> 
B40: mittlerer spezifischer Druckverlust | D40: =IF(dt<>"",rho/2 * wSonde^2 / dinnen * Daten!G49,"") ->  | E40: Pa/m | H40: Anteil der Pumpenenergie am Stromverbrauch
B41: Druckverlust im Sondenrohr | D41: =IF(dt<>"",D40*2*H/1000,"") ->  | E41: kPa | H41: Anteil Sondenpumpe: | J41: =IF(K38<>"",K38/(K38+D23*1000)*100,0) -> 0.0 | K41: %
F45: Diese Arbeit ist im Auftrag des Bundesamtes für Energie entstanden. Für den Inhalt
F46: und die Schlussfolgerungen ist ausschliesslich der Autor dieses Berichts verantwortlich.
B49: =B2 -> Objekt: | D49: =IF(C2<>"",C2,"") -> 
B52: =B4 -> Gebäude und Standort
B54: Wärmebedarf (total): | E54: =IF(D9="","",D9) -> 0 | F54: kW
B57: Wärmepumpe
B59: Fabrikat: | E59: =IF(C17="","",C17) -> 
B60: Typ: | E60: =IF(E17="","",E17) -> 
B61: COP: | E61: =IF(COP="","",COP) ->  | F61: -
B62: Leistungsaufnahme: | E62: =IF(D23="","",D23) ->  | F62: kW
B65: Sonden
B67: Bohrtiefe: | E67: =IF(H="","",H) ->  | F67: m
B68: Bohrdurchmesser: | E68: =db -> 0 | F68: cm
B69: Sondendurchmesser: | E69: =INDEX(Daten!A23:A25,D33,1) -> DN 32
B70: Medium: | E70: =INDEX(Daten!B11:B17,H6,1) -> Wasser
B73: Umwälzpumpe
B75: Fabrikat: | E75: =IF(I31="","",I31) -> 
B76: Typ: | E76: =IF(K31="","",K31) -> 
B77: Volumenstrom: | E77: =IF(J35="","",J35) ->  | F77: m³/h
B78: Förderhöhe: | E78: =IF(J33="","",J33) ->  | F78: m
B79: Wirkungsgrad: | E79: =IF(eta="","",eta) ->  | F79: %
B80: Leistungsaufnahme: | E80: =IF(K38="","",K38) ->  | F80: W
B83: Anteil der Umwälzpumpe am gesamten Energieverbrauch
H86: =IF(J41="","",J41) -> 0.0 | I86: %

Sheet Daten (hidden)
B2: spez. Wärmekapazität der Erde | D2: cp Erde | E2: 800 | F2: J/(kg*K) | G2: qspez.
B3: mittlere Dichte der Erde | D3: r Erde | E3: 2600 | F3: kg/m³ | G3: max.
B4: thermischer Sondenwiderstand | D4: Rc | E4: 0.08 | F4: Km/W | G4: =IF(lambdaErde>3,80,IF(lambdaErde>2,55,IF(lambdaErde>1.5,50,40))) -> 40
B7: Sole | C7: Stoffwerte nach: Höchst, Antifrogen N / L
D8: Viskosität
B9: Medium | C9: Dichte | D9: bei -10°C | E9: 0°C | F9: bei 10°C | G9: cp | H9: Frost
C10: kg/m3 | D10: m2/s | E10: m2/s | F10: m2/s | G10: kJ/(kg*K) | H10: °C | J10: Temperaturen: | L10: Viskosität | N10: =B12 -> Wasser | O10: =B13 -> Monoethylenglykol 25% | P10: =B14 -> Monoethylenglykol 33% | Q10: =B15 -> Monopropylenglykol 25% | R10: =B16 -> Monopropylenglykol 33% | U10: Prandtl | X10: Wasser
B12: Wasser | C12: 1000 | D12: 1.8e-06 | E12: 1.8e-06 | F12: 1.31e-06 | G12: 4.22 | H12: 0 | J12: 10 °C | K12: 10 | L12: =INDEX(M12:R12,1,Sondenauslegung!$H$6) -> 0.000001310 | N12: =F12 -> 0.000001310 | O12: =F13 -> 0.000002910 | P12: =F14 -> 0.000003730 | Q12: =F15 -> 0.000003940 | R12: =F16 -> 0.000005580 | S12: 10 | U12: =INDEX(W22:AB22,1,Sondenauslegung!$H$6) -> 9.34 | W12: -10 | X12: 13.01 | Y12: 49.53 | Z12: 67.57 | AA12: 85.64 | AB12: 140.29
B13: Monoethylenglykol 25% | C13: 1053 | D13: 6.27e-06 | E13: 4.15e-06 | F13: 2.91e-06 | G13: 3.8 | H13: -14 | J13: 8 °C | K13: 8 | L13: =INDEX(M13:R13,1,Sondenauslegung!$H$6) -> 0.000001408 | N13: =N$12+(N$17-N$12)/5 -> 0.000001408 | O13: =O$12+(O$17-O$12)/5 -> 0.000003158 | P13: =P$12+(P$17-P$12)/5 -> 0.000004078 | Q13: =Q$12+(Q$17-Q$12)/5 -> 0.000004348 | R13: =R$12+(R$17-R$12)/5 -> 0.000006236 | S13: 8 | U13: =INDEX(W21:AB21,1,Sondenauslegung!$H$6) -> 9.94 | W13: -8 | X13: 13.01 | Y13: 45.26 | Z13: 61.51 | AA13: 76.91 | AB13: 124.79
B14: Monoethylenglykol 33% | C14: 1067 | D14: 8.51e-06 | E14: 5.47e-06 | F14: 3.73e-06 | G14: 3.56 | H14: -21 | J14: 6 °C | K14: 6 | L14: =INDEX(M14:R14,1,Sondenauslegung!$H$6) -> 0.000001506 | N14: =N$12+(N$17-N$12)/5*2 -> 0.000001506 | O14: =O$12+(O$17-O$12)/5*2 -> 0.000003406 | P14: =P$12+(P$17-P$12)/5*2 -> 0.000004426 | Q14: =Q$12+(Q$17-Q$12)/5*2 -> 0.000004756 | R14: =R$12+(R$17-R$12)/5*2 -> 0.000006892 | S14: 6 | U14: =INDEX(W20:AB20,1,Sondenauslegung!$H$6) -> 10.61 | W14: -6 | X14: 13.01 | Y14: 41.47 | Z14: 56.15 | AA14: 69.27 | AB14: 111.36
B15: Monopropylenglykol 25% | C15: 1032 | D15: 9.67e-06 | E15: 5.98e-06 | F15: 3.94e-06 | G15: 3.92 | H15: -10 | J15: 4 °C | K15: 4 | L15: =INDEX(M15:R15,1,Sondenauslegung!$H$6) -> 0.000001604 | N15: =N$12+(N$17-N$12)/5*3 -> 0.000001604 | O15: =O$12+(O$17-O$12)/5*3 -> 0.000003654 | P15: =P$12+(P$17-P$12)/5*3 -> 0.000004774 | Q15: =Q$12+(Q$17-Q$12)/5*3 -> 0.000005164 | R15: =R$12+(R$17-R$12)/5*3 -> 0.000007548 | S15: 4 | U15: =INDEX(W19:AB19,1,Sondenauslegung!$H$6) -> 11.33 | W15: -4 | X15: 13.01 | Y15: 38.10 | Z15: 51.38 | AA15: 62.57 | AB15: 99.70
B16: Monopropylenglykol 33% | C16: 1040 | D16: 1.515e-05 | E16: 8.86e-06 | F16: 5.58e-06 | G16: 3.72 | H16: -17 | J16: 2 °C | K16: 2 | L16: =INDEX(M16:R16,1,Sondenauslegung!$H$6) -> 0.000001702 | N16: =N$12+(N$17-N$12)/5*4 -> 0.000001702 | O16: =O$12+(O$17-O$12)/5*4 -> 0.000003902 | P16: =P$12+(P$17-P$12)/5*4 -> 0.000005122 | Q16: =Q$12+(Q$17-Q$12)/5*4 -> 0.000005572 | R16: =R$12+(R$17-R$12)/5*4 -> 0.000008204 | S16: 2 | U16: =INDEX(W18:AB18,1,Sondenauslegung!$H$6) -> 12.13 | W16: -2 | X16: 13.01 | Y16: 35.08 | Z16: 47.15 | AA16: 56.67 | AB16: 89.53
J17: 0 °C | K17: 0 | L17: =INDEX(M17:R17,1,Sondenauslegung!$H$6) -> 0.000001800 | N17: =E12 -> 0.000001800 | O17: =E13 -> 0.000004150 | P17: =E14 -> 0.000005470 | Q17: =E15 -> 0.000005980 | R17: =E16 -> 0.000008860 | S17: 0 | U17: =INDEX(W17:AB17,1,Sondenauslegung!$H$6) -> 13.01 | W17: 0 | X17: 13.01 | Y17: 32.37 | Z17: 43.37 | AA17: 51.47 | AB17: 80.63
J18: -2 °C | K18: -2 | L18: =INDEX(M18:R18,1,Sondenauslegung!$H$6) -> 0.000001800 | N18: =N17+(N22-N17)/5 -> 0.000001800 | O18: =O17+(O22-O17)/5 -> 0.000004574 | P18: =P17+(P22-P17)/5 -> 0.000006078 | Q18: =Q17+(Q22-Q17)/5 -> 0.000006718 | R18: =R17+(R22-R17)/5 -> 0.000010118 | S18: -2 | U18: =INDEX(W16:AB16,1,Sondenauslegung!$H$6) -> 13.01 | W18: 2 | X18: 12.13 | Y18: 29.95 | Z18: 39.98 | AA18: 46.87 | AB18: 72.83
B19: Sonde | G19: Wärmeübergang | J19: -4 °C | K19: -4 | L19: =INDEX(M19:R19,1,Sondenauslegung!$H$6) -> 0.000001800 | N19: =N17+(N22-N17)/5*2 -> 0.000001800 | O19: =O17+(O22-O17)/5*2 -> 0.000004998 | P19: =P17+(P22-P17)/5*2 -> 0.000006686 | Q19: =Q17+(Q22-Q17)/5*2 -> 0.000007456 | R19: =R17+(R22-R17)/5*2 -> 0.000011376 | S19: -4 | U19: =INDEX(W15:AB15,1,Sondenauslegung!$H$6) -> 13.01 | W19: 4 | X19: 11.33 | Y19: 27.76 | Z19: 36.95 | AA19: 42.78 | AB19: 65.97
C20: Aussendurch. | D20: Wandst. | E20: Innendurch. | G20: nach Cerbe- | J20: -6 °C | K20: -6 | L20: =INDEX(M20:R20,1,Sondenauslegung!$H$6) -> 0.000001800 | N20: =N17+(N22-N17)/5*3 -> 0.000001800 | O20: =O17+(O22-O17)/5*3 -> 0.000005422 | P20: =P17+(P22-P17)/5*3 -> 0.000007294 | Q20: =Q17+(Q22-Q17)/5*3 -> 0.000008194 | R20: =R17+(R22-R17)/5*3 -> 0.000012634 | S20: -6 | U20: =INDEX(W14:AB14,1,Sondenauslegung!$H$6) -> 13.01 | W20: 6 | X20: 10.61 | Y20: 25.79 | Z20: 34.22 | AA20: 39.15 | AB20: 59.91
C21: m | D21: m | E21: m | G21: Hoffmann | J21: -8 °C | K21: -8 | L21: =INDEX(M21:R21,1,Sondenauslegung!$H$6) -> 0.000001800 | N21: =N17+(N22-N17)/5*4 -> 0.000001800 | O21: =O17+(O22-O17)/5*4 -> 0.000005846 | P21: =P17+(P22-P17)/5*4 -> 0.000007902 | Q21: =Q17+(Q22-Q17)/5*4 -> 0.000008932 | R21: =R17+(R22-R17)/5*4 -> 0.000013892 | S21: -8 | U21: =INDEX(W13:AB13,1,Sondenauslegung!$H$6) -> 13.01 | W21: 8 | X21: 9.94 | Y21: 24 | Z21: 31.76 | AA21: 35.91 | AB21: 54.55
J22: -10 °C | K22: -10 | L22: =INDEX(M22:R22,1,Sondenauslegung!$H$6) -> 0.000001800 | N22: =D12 -> 0.000001800 | O22: =D13 -> 0.000006270 | P22: =D14 -> 0.000008510 | Q22: =D15 -> 0.000009670 | R22: =D16 -> 0.000015150 | S22: -10 | U22: =INDEX(W12:AB12,1,Sondenauslegung!$H$6) -> 13.01 | W22: 10 | X22: 9.34 | Y22: 22.39 | Z22: 29.55 | AA22: 33.02 | AB22: 49.8
A23: DN 25 | B23: 25 mm Doppel-U | C23: 0.025 | D23: 0.0023 | E23: 0.0204 | G23: Nusselt turb. | H23: =IF(H<>"",0.012*(re^0.87-280)*prandtl^0.4*(1+(dinnen/2/H)^(2/3)),0) -> 0.00
A24: DN 32 | B24: 32 mm Doppel-U | C24: 0.032 | D24: 0.003 | E24: 0.026 | G24: Nusselt lam. | H24: =IF(H<>"",4.36,0) -> 0.00
A25: DN 40 | B25: 40 mm Doppel-U | C25: 0.04 | D25: 0.0037 | E25: 0.0326 | G25: lambda Fluid | H25: =rho*nue*cp/1000/prandtl -> 0.60
G26: Alpha | H26: =IF(re<2300,H24*H25/dinnen,H23*H25/dinnen) -> 0
B28: Standort | E28: Entzugsprofil
C29: Faktor | F29: Zeit | G29: g(t,H)
C30: K | F30: s | G30: -
B32: Mittelland 500m | C32: 0.8 | E32: Schnell (2 Tage) | F32: 172800 | G32: =IF(H<>"",LN(H/(db/100))+0.5*LN(9*F32*lambdaErde/H^2/cpErde/rhoErde),0) -> 0
B33: Voralpen 1000m | C33: 1.4 | E33: Mittel (5 Tage) | F33: 432000 | G33: =IF(H<>"",LN(H/(db/100))+0.5*LN(9*F33*lambdaErde/H^2/cpErde/rhoErde),0) -> 0 | J33: Druckverlust-Berechnung: | N33: Am Bohrkopf zusammengefasst? | P33: 2
B34: Alpen 1500m | C34: 2 | E34: Lang (20 Tage) | F34: 1728000 | G34: =IF(H<>"",LN(H/(db/100))+0.5*LN(9*F34*lambdaErde/H^2/cpErde/rhoErde),0) -> 0 | J34: Petukhov (empfohlen) | N34: ja
J35: Blasius | N35: nein
B37: Aktuelle Werte:
B38: dinnen | C38: =INDEX(E23:E25,Sondenauslegung!D33,1) -> 0.026 | D38: m | E38: externe Druckverluste:
B39: Reynoldszahl Sonde | C39: =IF(wSonde<>"",IF(Fluid=1,,wSonde*dinnen/nue*1000000),"") ->  | E39: horizontale Sondenzuleitung | G39: =IF(AND(Sondenauslegung!J22>0,Sondenauslegung!D24<>""),2*Sondenauslegung!J22*ZetaAnschluss*rho*wAnschluss*wAnschluss/2/dAnschluss,0) -> 0.00 | H39: kPa
B40: Prandtl-Zahl | C40: =(INDEX(U12:U22,Sondenauslegung!J6,1)) -> 11.33 | E40: WP-Verdampfer | G40: =IF(AND(Sondenauslegung!D21>0,Sondenauslegung!D24<>""),Sondenauslegung!D20/(Sondenauslegung!D21/Sondenauslegung!D24)^2,Sondenauslegung!D20) -> 0.00 | H40: kPa
B41: g-funktion | C41: =INDEX(G32:G34,Sondenauslegung!D22,1) -> 0.00000 | E41: Verteiler | G41: =IF(AND(Sondenauslegung!J16>0,Sondenauslegung!D24<>""),Sondenauslegung!J15/(Sondenauslegung!J16/Sondenauslegung!D24)^2,Sondenauslegung!J15) -> 0.00 | H41: kPa
B42: a-Wert | C42: =IF(dinnen<>"",IF(re<2300,H24*H25/dinnen,H23*H25/dinnen),0) -> 0 | D42: W/m2K | E42: Volumenstrommesser | G42: =IF(AND(Sondenauslegung!J18>0,Sondenauslegung!D24<>""),Sondenauslegung!J17/(Sondenauslegung!J18/Sondenauslegung!D24)^2,Sondenauslegung!J17) -> 0.00 | H42: kPa
B43: "Ra" | C43: =IF(alpha>0,1/(8*PI()*alpha*(dinnen/2)),0) -> 0.0000 | D43: Km/W | E43: Bögen und Tauchhülsen | G43: =IF(pd<>"",pd*(Sondenauslegung!J24*2+Sondenauslegung!J25*1)/1000,0) ->  | H43: kPa
B44: p_dyn,Sonde | C44: =IF(wSonde<>"",rho/2*(IF(Fluid=1,,mSonde/3600*4/rho/(dinnen)^2/PI()))^2,"")*(3-P33) ->  | D44: Pa | E44: aus eingegebenem z- oder Sz | G44: =IF(pd<>"",pd*(Sondenauslegung!J26)/1000,0) ->  | H44: kPa
B45: R-Wert | C45: =IF(wSonde<>"",(IF(re>0,G49,0))/dinnen*rho/2*wSonde^2,"") ->  | D45: Pa/m | E45: Sonstige Elemente | G45: =IF(AND(Sondenauslegung!J20>0,Sondenauslegung!D24<>""),Sondenauslegung!J19/(Sondenauslegung!J20/Sondenauslegung!D24)^2,Sondenauslegung!J19) -> 0.00 | H45: kPa
B46: "Rg" | C46: =IF(lambdaErde>0,gfunk/(2*PI()*lambdaErde),0) -> 0.0000 | D46: Km/W | E46: Sondenfuss | G46: =IF(pd<>"",4*pd/1000,0)/(3-P33) ->  | H46: kPa
B47: "Rm" | C47: =IF(mSonde<>"",H/(2*mSonde/3.6*cp),0) -> 0.0000 | D47: Km/W | E47: Total externe Druckverluste: | G47: =SUM(G39:G46) ->  | H47: kPa
B48: T_Sink (Rücklauf) | C48: =IF(qspez<>"",Sondenauslegung!D13-(C46+ra+_rc+C47)*qspez,0) -> 0.00 | D48: °C
B49: Entzugsleistung Qerde | C49: =IF(COP>0,Qh*(1-1/COP),0) -> 0.00 | D49: W | E49: Druckverlustkoeff. x Sonde | G49: =IF(re<>"",IF(re<2300,64/re,IF(petukhov=1,(0.79*LN(re)-1.64)^(-2),0.3164/(re^(1/4)))),"") -> 
B50: "Rb" | C50: =0.08+ra -> 0.080 | D50: Km/W
B51: mittlere Geschw. in Zuleitung | C51: =IF(dAnschluss<>"",IF(Fluid=1,,mSonde/3600*4/rho/(dAnschluss/1000)^2/PI()),"")*(3-P33) ->  | D51: m/s
B52: Reynoldszahl Zuleitung | C52: =IF(dAnschluss<>"",IF(Fluid=1,,wAnschluss*dAnschluss/nue*1000),"") -> 
B53: Druckverlustkoeff. x Zuleitg. | C53: =IF(dAnschluss>0,IF(ReAnschluss>0,IF(ReAnschluss<2300,64/ReAnschluss,IF(petukhov=1,(0.79*LN(ReAnschluss)-1.64)^(-2),0.3164/(ReAnschluss^(1/4)))),0),0) -> 0
